Cogmind - Beta 9.6 @@@ ROGUE MODE // 2020.07.23 @ 03:06:25 // Winter2019/RPGLIKE Player: FontPeg Result: Smashed by cave-in Performance ------------- Evolutions (5) 2500 Regions Visited (11) 2200 Robots Destroyed (76) 380 Value Destroyed (2514) 2514 Prototype IDs (10) 200 Alien Tech Used (1) 200 Bonus (-65) -65 TOTAL SCORE: 7929 Bonus ------- High Alert Combat Kills 12 Follower Combat Kills 98 Friendly Fire -175 Cogmind --------- Core Integrity 0/1000 Matter 382/400 Energy 440/440 System Corruption 3% Temperature Cool (0) Movement Hovering (112) Ox1 Location -5/Factory Parts ------- > --- POWER (2) -------- Improved Deuterium Engine > --- PROPULSION (4) --- Improved Hover Unit Improved Hover Unit Airjet > --- UTILITY (5) ------ Experimental Sensor Array Improved Signal Interpreter Makeshift Transmission Jammer Makeshift Armor Plating Hacking Suite > --- WEAPON (3) ------- Improved Heavy Laser Cooled Particle Cannon Gauss Rifle > --- INVENTORY (4) ---- Antigrav System Improved Particle Charger Phase Cannon Chainsword Peak State ------------ > --- POWER ------------ Light Deuterium Engine Improved Deuterium Engine > --- PROPULSION ------- Improved Hover Unit Airjet Airjet Gravmag System > --- UTILITY ---------- Experimental Sensor Array Improved Signal Interpreter Makeshift Transmission Jammer Makeshift Armor Plating Hacking Suite > --- WEAPON ----------- Improved Heavy Laser Cooled Particle Cannon Gauss Rifle > --- INVENTORY -------- Improved Hover Unit Improved Particle Charger Phase Cannon [Rating: 54] Favorites ----------- Power Light Ion Engine Engine Light Ion Engine Propulsion Improved Hover Unit Wheel Wheel Hover Unit Improved Hover Unit Utility Experimental Sensor Array Device Experimental Sensor Array Storage Compact Matter Pod Processor Improved Signal Interpreter Hackware Hacking Suite Protection Hardened Light Armor Plating Weapon Gauss Rifle Energy Gun Gatling Laser Energy Cannon Cooled Particle Cannon Ballistic Gun Gauss Rifle Launcher Mini Grenade Launcher Slashing Weapon Ripper Build | -11 -10 -9 -9 -9 -8 -8 -7 -7 -7 -6 -5 ------- Run | Scr Mat Mat Min Exi Min Mat Fac Low Low Fac Fac Slots Evolved 9 | 3 . . 1 . 1 2 . . 1 . 1 Power 1 | . . . . . . 1 . . . . . Propulsion 2 | 1 . . . . . 1 . . . . . Utility 4 | 1 . . 1 . 1 . . . . . 1 Weapon 2 | 1 . . . . . . . . 1 . . Parts Attached 63 | 5 2 4 3 . 2 12 8 1 11 13 2 Power 9 | 1 . . . . 1 1 3 . 1 2 . Engine 9 | 1 . . . . 1 1 3 . 1 2 . Core . | . . . . . . . . . . . . Reactor . | . . . . . . . . . . . . Propulsion 14 | 2 . . . . . 4 1 1 2 3 1 Treads . | . . . . . . . . . . . . Leg . | . . . . . . . . . . . . Wheel 3 | 2 . . . . . 1 . . . . . Hover 11 | . . . . . . 3 1 1 2 3 1 Flight . | . . . . . . . . . . . . Utility 16 | . 1 1 3 . 1 1 2 . 3 3 1 Device 6 | . . . 1 . 1 . . . 2 2 . Storage 1 | . . . 1 . . . . . . . . Processor 2 | . . . 1 . . . 1 . . . . Hackware 2 | . 1 . . . . . . . . . 1 Protection 5 | . . 1 . . . 1 1 . 1 1 . Artifact . | . . . . . . . . . . . . Weapon 24 | 2 1 3 . . . 6 2 . 5 5 . Energy Gun 11 | . . . . . . 4 2 . 3 2 . Energy Cannon 2 | . . . . . . . . . . 2 . Ballistic Gun 8 | 2 . 2 . . . 2 . . 1 1 . Ballistic Cannon . | . . . . . . . . . . . . Launcher 2 | . 1 1 . . . . . . . . . Special Weapon . | . . . . . . . . . . . . Impact Weapon . | . . . . . . . . . . . . Slashing Weapon 1 | . . . . . . . . . 1 . . Piercing Weapon . | . . . . . . . . . . . . Special Melee Weapon . | . . . . . . . . . . . . Unidentified Prototypes 7 | . . 1 1 . . 1 . . 1 3 . Parts Lost 3 | . . . . . . . . . . . 3 Power 1 | . . . . . . . . . . . 1 Propulsion 2 | . . . . . . . . . . . 2 Utility . | . . . . . . . . . . . . Weapon . | . . . . . . . . . . . . Highest Loss Streak 2 | . . . . . . . . . . . 2 Average Slot Usage (%) 97 | . 83 93 97 100 100 94 100 100 99 100 99 Engine 14 | . 14 14 12 12 11 15 18 18 15 15 14 Wheel 10 | . 28 28 25 25 22 4 . . . . . Hover 15 | . . . . . . 18 27 27 27 30 27 Device 14 | . . . 11 12 21 18 18 18 15 15 14 Storage 5 | . . . 7 12 11 9 . . . . . Processor 3 | . . . . . . . 8 9 7 7 7 Hackware 1 | . 12 14 . . . . . . . . 7 Protection 9 | . . 8 12 12 11 9 9 9 7 7 7 Energy Gun 5 | . . . . . . 7 9 9 14 7 7 Energy Cannon 1 | . . . . . . . . . . 7 7 Ballistic Gun 9 | . 16 13 12 12 11 9 9 9 7 6 7 Launcher 4 | . 11 14 12 12 11 1 . . . . . Naked Turns . | . . . . . . . . . . . . Heaviest Build 46 | 5 7 12 14 14 19 24 25 25 37 46 41 Greatest Support 42 | 20 20 20 20 20 20 22 29 30 38 42 42 Greatest Overweight (x) 2 | . . . . . . 2 . . . 1 1 Average Overweight (x) . | . . . . . . . . . . . . Largest Inventory Capacity 4 | 1 1 3 3 3 3 4 4 4 4 4 4 Average Capacity 3 | . 1 2 3 3 3 3 4 4 4 4 4 Most Carried 4 | 1 1 3 3 3 3 4 4 4 4 4 4 Average Carried 3 | . 1 2 3 2 2 3 3 4 3 3 3 Final Capacity 4 | 1 1 3 3 3 3 4 4 4 4 4 4 Final Carried 4 | 1 1 3 3 3 3 4 4 4 4 4 4 Class Distribution -------------------- 47% | Mutant 28% | Scavenger-Tank 24% | Scavenger-Mutant Dominant Class ---------------- Mutant | -10/Materials Mutant | -9/Materials Mutant | -9/Mines Mutant | -9/Exiles Mutant | -8/Mines Scavenger-Mutant | -8/Materials Scavenger-Mutant | -7/Factory Scavenger-Mutant | -7/Lower Caves Scavenger-Tank | -7/Lower Caves Scavenger-Tank | -6/Factory Scavenger-Tank | -5/Factory Resources | -11 -10 -9 -9 -9 -8 -8 -7 -7 -7 -6 -5 ----------- Run | Scr Mat Mat Min Exi Min Mat Fac Low Low Fac Fac Matter Collected 1970 | 241 270 112 118 . 119 413 34 86 236 26 315 Remotely . | . . . . . . . . . . . . Salvage Created 2132 | . 221 129 41 . 119 350 88 67 439 16 662 Parts 151 | . 16 12 10 5 17 30 12 3 14 2 30 Haulers Intercepted 3 | . . 2 . . . 1 . . . . . Recyclers Shooed 2 | . . 1 . . . . . . . . 1 Parts Field Recycled . | . . . . . . . . . . . . Retrieved Matter . | . . . . . . . . . . . . Parts Self-Destructed 5 | . . . . . . . . 3 2 . . Prevented . | . . . . . . . . . . . . Kills | -11 -10 -9 -9 -9 -8 -8 -7 -7 -7 -6 -5 ------- Run | Scr Mat Mat Min Exi Min Mat Fac Low Low Fac Fac Combat Hostiles Destroyed 53 | . 6 2 3 1 10 6 2 2 8 1 12 Guns 24 | . . . 1 . 1 6 2 2 6 . 6 Cannons 2 | . . . . . . . . . . 1 1 AOE 23 | . 6 2 2 1 9 . . . . . 3 Classes Destroyed 14 | . 7 2 . 1 . . 1 . 2 . 1 Worker 5 | . 1 1 1 . . 2 . . . . . Builder 4 | . 1 1 . . . . . . . . 2 Hauler 3 | . . 2 . . . 1 . . . . . Recycler 3 | . 2 1 . . . . . . . . . Operator 3 | . 1 . . . . 1 . . 1 . . Watcher 4 | . 1 . . . . 2 1 . . . . Swarmer 13 | . 3 . 3 . 7 . . . . . . Grunt 13 | . 3 . . . 3 1 1 . . . 5 Brawler 1 | . . . . . . . . . . . 1 Duelist 1 | . . . . . . . . . . . 1 Sentry 8 | . . 2 . . . 4 . 1 . . 1 Hunter 8 | . . . . 1 . 1 . 1 1 . 4 Programmer 2 | . . . . . . . 1 . . 1 . Thug 2 | . . . . . . . . . 2 . . Savage 1 | . . . . . . . . . . . 1 Butcher 4 | . . . . . . . . . 4 . . Mutant 1 | . . . . . . . . . 1 . . Best Kill Streak 11 | . 11 6 4 1 7 3 1 1 3 1 3 Combat Bots Only 7 | . 4 1 3 1 7 1 1 1 3 1 3 Max Kills in Single Turn 4 | . 2 2 4 1 3 1 1 1 1 1 3 Gunslinging . | . . . . . . . . . . . . Exploded 3 | . 2 1 2 1 3 . . . . . 3 Melee . | . . . . . . . . . . . . Uniques/NPCs Destroyed . | . . . . . . . . . . . . Combat | -11 -10 -9 -9 -9 -8 -8 -7 -7 -7 -6 -5 -------- Run | Scr Mat Mat Min Exi Min Mat Fac Low Low Fac Fac Damage Taken 4123 | . 190 330 45 . 188 382 112 91 536 59 2190 Core 3100 | . 154 260 25 . 148 257 93 59 390 46 1668 Absorbed by Shields . | . . . . . . . . . . . . Redirected to Core 2532 | . 116 186 25 . 106 214 66 40 355 46 1378 Core Remaining (%) 83 | 100 74 . . . 58 86 . . 83 100 . Volleys Fired 196 | 2 17 14 1 6 11 45 9 6 29 6 50 Largest 3 | 2 2 2 2 2 2 2 2 2 3 3 3 Hottest 198 | 40 50 53 53 53 53 89 108 108 188 198 123 Shots Fired 451 | 4 31 24 2 12 17 87 18 12 77 18 149 Gun 350 | 4 19 11 1 6 11 80 18 12 77 12 99 Cannon 56 | . . . . . . . . . . 6 50 Launcher 45 | . 12 13 1 6 6 7 . . . . . Special . | . . . . . . . . . . . . Kinetic 196 | 4 19 11 1 6 11 44 9 6 29 6 50 Thermal 210 | . . . . . . 36 9 6 48 12 99 Explosive 45 | . 12 13 1 6 6 7 . . . . . Electromagnetic . | . . . . . . . . . . . . Robot Hit Streak 12 | 2 7 6 1 3 7 10 8 9 12 4 7 Robot Miss Streak 7 | 2 3 4 1 . 2 3 3 2 7 4 7 Penetration Max . | . . . . . . . . . . . . Secondary Targets . | . . . . . . . . . . . . Shots Hit Robots 274 | 2 14 17 1 2 7 54 15 10 59 10 83 Core Hits 159 | . 18 17 4 4 14 22 8 6 30 5 31 Critical Hits 1 | . . . . . . 1 . . . . . Critical Kills . | . . . . . . . . . . . . Critical Parts Destroyed 1 | . . . . . . 1 . . . . . Melee Attacks 1 | . . . . . . . . . 1 . . Impact . | . . . . . . . . . . . . Slashing 1 | . . . . . . . . . 1 . . Piercing . | . . . . . . . . . . . . Sneak Attacks . | . . . . . . . . . . . . Combat Hostiles . | . . . . . . . . . . . . Follow-up Attacks . | . . . . . . . . . . . . Damage Inflicted 7564 | 16 870 450 137 111 628 1190 311 170 1049 232 2400 Guns 4063 | 16 75 60 14 12 82 906 311 170 1049 139 1229 Cannons 801 | . . . . . . . . . . 93 708 Explosions 2674 | . 795 390 123 99 546 284 . . . . 437 Melee . | . . . . . . . . . . . . Ramming 26 | . . . . . . . . . . . 26 Kinetic 1683 | 16 75 60 14 12 82 406 121 52 316 45 484 Thermal 3181 | . . . . . . 500 190 118 733 187 1453 Explosive 2674 | . 795 390 123 99 546 284 . . . . 437 Electromagnetic . | . . . . . . . . . . . . Impact . | . . . . . . . . . . . . Slashing . | . . . . . . . . . . . . Piercing . | . . . . . . . . . . . . Highest Corruption 1 | . . . . . . . 1 1 1 . . Average Corruption 1 | . . . . . . . 1 1 1 . . Corruption Purged . | . . . . . . . . . . . . Effects 8 | . . . . . . . 2 2 4 . . Message Errors 2 | . . . . . . . 2 . . . . Energy Discharges 2 | . . . . . . . . 1 1 . . Data Loss (minor) 1 | . . . . . . . . . 1 . . Targeting Errors 3 | . . . . . . . . 1 2 . . Overload Shots . | . . . . . . . . . . . . Overflow Damage 145 | . 25 7 . . 29 18 . . . . 66 Projectiles 37 | . . . . . . . . . . . 37 Explosions 108 | . 25 7 . . 29 18 . . . . 29 Melee . | . . . . . . . . . . . . Knockbacks . | . . . . . . . . . . . . Impact . | . . . . . . . . . . . . Kinetic . | . . . . . . . . . . . . Secondary . | . . . . . . . . . . . . Self-Inflicted Damage 372 | . 52 184 . . . 27 . . . . 109 Shots 11 | . 2 6 . . . 1 . . . . 2 Rammed 1 | . . . . . . . . . . . 1 Targets Rammed 1 | . . . . . . . . . . . 1 Kicked . | . . . . . . . . . . . . Crushed . | . . . . . . . . . . . . Highest Temperature 326 | . 16 29 6 39 69 326 . . 48 232 3 Average Temperature 72 | . 8 15 4 18 36 97 . . 18 90 3 Received Heat Transfer 639 | . 39 63 . . 54 153 36 30 117 . 147 Siege Activations . | . . . . . . . . . . . . Robots Corrupted . | . . . . . . . . . . . . Combat Hostiles . | . . . . . . . . . . . . Parts Fried 2 | . . . . . . . . . 2 . . Impact Corruptions . | . . . . . . . . . . . . Robots Melted 4 | . . . . . . . . . 2 . 2 Combat Hostiles 4 | . . . . . . . . . 2 . 2 Parts Melted 9 | . . . . . . 1 . 2 . 1 5 Heat Transferred 5520 | . . . . . . 925 387 275 1700 272 1961 Parts Sabotaged . | . . . . . . . . . . . . Parts Stolen . | . . . . . . . . . . . . Parts Stripped . | . . . . . . . . . . . . Power Chain Reactions . | . . . . . . . . . . . . Missiles Intercepted . | . . . . . . . . . . . . Alert | -11 -10 -9 -9 -9 -8 -8 -7 -7 -7 -6 -5 ------- Run | Scr Mat Mat Min Exi Min Mat Fac Low Low Fac Fac Peak Influence 424 | . 280 275 181 . 257 223 136 . . 196 424 Average Influence 124 | . 162 171 141 . 107 111 83 . . 103 181 Maximum Alert Level 2 | . 1 1 . . 1 1 . . . . 2 Low Security (%) 80 | 100 53 82 100 . 65 86 100 . . 100 38 Level 1 19 | . 46 17 . . 34 13 . . . . 56 Level 2 . | . . . . . . . . . . . 4 Level 3 . | . . . . . . . . . . . . Level 4 . | . . . . . . . . . . . . Level 5 . | . . . . . . . . . . . . High Security . | . . . . . . . . . . . . Max Security . | . . . . . . . . . . . . Squads Dispatched 11 | . 1 1 . . . 1 3 . . 1 4 Investigation 2 | . . . . . . . 1 . . 1 . Extermination 1 | . . . . . . . 1 . . . . Reinforcement 6 | . 1 1 . . . 1 1 . . . 2 Assault . | . . . . . . . . . . . . Garrison 2 | . . . . . . . . . . . 2 Intercept . | . . . . . . . . . . . . Construction Impeded . | . . . . . . . . . . . . Haulers Reinforced 1 | . . . . . . . 1 . . . . Stealth | -11 -10 -9 -9 -9 -8 -8 -7 -7 -7 -6 -5 --------- Run | Scr Mat Mat Min Exi Min Mat Fac Low Low Fac Fac Distress Signals 2 | . . . . . . 1 . . . . 1 Communications Jammed 35 | . . . . . . 21 13 . . . 1 Distress Signals 34 | . . . . . . 20 13 . . . 1 Times Spotted 91 | . 13 2 3 . 10 21 5 2 8 2 25 Peak Tracking Total 11 | . 5 1 3 . 5 4 2 1 3 1 11 Tactical Retreats 9 | . 1 . . . . 6 . . . . 2 Traps | -11 -10 -9 -9 -9 -8 -8 -7 -7 -7 -6 -5 ------- Run | Scr Mat Mat Min Exi Min Mat Fac Low Low Fac Fac Traps Triggered 2 | . . . . . . 1 . . . 1 . Indirectly . | . . . . . . . . . . . . Trap Hack Attempts . | . . . . . . . . . . . . Triggered . | . . . . . . . . . . . . Disarmed . | . . . . . . . . . . . . Reprogrammed . | . . . . . . . . . . . . Reused . | . . . . . . . . . . . . Traps Extracted . | . . . . . . . . . . . . Installed . | . . . . . . . . . . . . Triggered 1 | . . . . . . . . . 1 . . Machines | -11 -10 -9 -9 -9 -8 -8 -7 -7 -7 -6 -5 ---------- Run | Scr Mat Mat Min Exi Min Mat Fac Low Low Fac Fac Machines Disabled 14 | . 3 1 . . . 4 1 . . 2 3 Max in Single Turn 3 | . 1 1 . . . 1 1 . . 2 3 Garrison Access 1 | . . . . . . . . . . . 1 Machines Sabotaged . | . . . . . . . . . . . . Garrisons Compromised . | . . . . . . . . . . . . Overloaded Fab Kills . | . . . . . . . . . . . . Fab Network Shutdowns . | . . . . . . . . . . . . Hacking | -11 -10 -9 -9 -9 -8 -8 -7 -7 -7 -6 -5 --------- Run | Scr Mat Mat Min Exi Min Mat Fac Low Low Fac Fac Machines Accessed 27 | . 2 3 . 3 . 7 4 . 1 6 1 Terminals 18 | . 2 3 . . . 7 3 . 1 2 . Fabricators 4 | . . . . . . . 1 . . 3 . Repair Stations . | . . . . . . . . . . . . Recycling Units . | . . . . . . . . . . . . Scanalyzers 1 | . . . . . . . . . . 1 . Garrison Access 1 | . . . . . . . . . . . 1 Total Hacks 96 | . 6 6 . 34 . 19 12 . 1 15 3 Successful 71 | . 6 3 . 34 . 11 5 . 1 10 1 Failed 25 | . . 3 . . . 8 7 . . 5 2 Catastrophic 1 | . . . . . . 1 . . . . . Database Lockouts . | . . . . . . . . . . . . Manual 37 | . 4 5 . . . 17 6 . . 5 . Terminals 47 | . 6 6 . . . 19 9 . 1 6 . Fabricators 10 | . . . . . . . 3 . . 7 . Repair Stations . | . . . . . . . . . . . . Recycling Units . | . . . . . . . . . . . . Scanalyzers 2 | . . . . . . . . . . 2 . Garrison Access 3 | . . . . . . . . . . . 3 Terminal Hacks 47 | . 3 2 . 34 . 4 1 . 1 2 . Record 35 | . . . . 34 . . . . 1 . . Part Schematic 3 | . . . . . . 1 1 . . 1 . Robot Schematic 1 | . . . . . . . . . . 1 . Prototype ID Bank 2 | . 2 . . . . . . . . . . Terminal Index 3 | . 1 1 . . . 1 . . . . . Fabricator Index 1 | . . . . . . 1 . . . . . Unreport Threat 1 | . . . . . . 1 . . . . . Registered Prototypes 1 | . . 1 . . . . . . . . . Fabricator Hacks 5 | . . . . . . . . . . 5 . Load Schematic 2 | . . . . . . . . . . 2 . Build 3 | . . . . . . . . . . 3 . Repair Station Hacks . | . . . . . . . . . . . . Recycling Unit Hacks . | . . . . . . . . . . . . Scanalyzer 2 | . . . . . . . . . . 2 . Insert Component 1 | . . . . . . . . . . 1 . Analyze 1 | . . . . . . . . . . 1 . Garrison Access Hacks 1 | . . . . . . . . . . . 1 Seal Access 1 | . . . . . . . . . . . 1 Unauthorized Hacks 16 | . 3 1 . . . 7 4 . . 1 . Terminals 16 | . 3 1 . . . 7 4 . . 1 . Track 4 | . 1 . . . . 3 . . . . . Assimilate 3 | . . . . . . . 3 . . . . Botnet 8 | . 2 1 . . . 3 1 . . 1 . Detonate 1 | . . . . . . 1 . . . . . Fabricators . | . . . . . . . . . . . . Repair Stations . | . . . . . . . . . . . . Recycling Units . | . . . . . . . . . . . . Scanalyzers . | . . . . . . . . . . . . Garrison Access . | . . . . . . . . . . . . Data Cores Recovered . | . . . . . . . . . . . . Used . | . . . . . . . . . . . . Hacking Detections 20 | . 1 3 . . . 6 4 . 1 4 1 Full Trace Events 3 | . . . . . . 1 1 . . 1 . Feedback Events . | . . . . . . . . . . . . Feedback Blocked . | . . . . . . . . . . . . Robot Schematics Acquired 1 | . . . . . . . . . . 1 . Robots Built 3 | . . . . . . . . . . 3 . Matter 285 | . . . . . . . . . . 285 . Time 76 | . . . . . . . . . . 76 . Total Robot Build Rating 15 | . . . . . . . . . . 15 . Part Schematics Acquired 4 | . . . . . . 1 1 . . 2 . Parts Built 1 | . . . . . . . . . . 1 . Matter 190 | . . . . . . . . . . 190 . Time 95 | . . . . . . . . . . 95 . Total Part Build Rating 5 | . . . . . . . . . . 5 . Parts Repaired . | . . . . . . . . . . . . Time . | . . . . . . . . . . . . Parts Recycled . | . . . . . . . . . . . . Recycled Matter . | . . . . . . . . . . . . Retrieved Matter . | . . . . . . . . . . . . Retrieved Components . | . . . . . . . . . . . . Parts Scanalyzed 1 | . . . . . . . . . . 1 . Part Schematics Acquired 1 | . . . . . . . . . . 1 . Parts Damaged . | . . . . . . . . . . . . Bothacking | -11 -10 -9 -9 -9 -8 -8 -7 -7 -7 -6 -5 ------------ Run | Scr Mat Mat Min Exi Min Mat Fac Low Low Fac Fac Used RIF Installer . | . . . . . . . . . . . . Robots Hacked . | . . . . . . . . . . . . Non-combat . | . . . . . . . . . . . . Combat . | . . . . . . . . . . . . Robot Hacks Applied . | . . . . . . . . . . . . Relay Couplers Released . | . . . . . . . . . . . . Robots Rewired 4 | . . . . 2 . . . . 2 . . Allies Hacked . | . . . . . . . . . . . . Hacks Repelled . | . . . . . . . . . . . . Allies | -11 -10 -9 -9 -9 -8 -8 -7 -7 -7 -6 -5 -------- Run | Scr Mat Mat Min Exi Min Mat Fac Low Low Fac Fac Total Allies 11 | . . . 2 2 . . 2 . 2 3 . Largest Group 6 | . . . 2 2 2 . 2 2 3 6 3 Highest-Rated Group 153 | . . . 39 39 16 . 52 52 66 153 65 Highest-Rated Ally 31 | . . . 31 31 8 . 26 26 26 29 25 Total Orders 4 | . . . . . . . 2 . 2 . . STAY 1 | . . . . . . . 1 . . . . GOTO 1 | . . . . . . . . . 1 . . FOLLOW 2 | . . . . . . . 1 . 1 . . Ally Attacks 25 | . . . . . 1 . . . . 20 4 Total Damage 430 | . . . . . . . . . . 368 62 Kills 4 | . . . . . . . . . . 4 . Allies Corrupted . | . . . . . . . . . . . . Allies Melted . | . . . . . . . . . . . . Intel | -11 -10 -9 -9 -9 -8 -8 -7 -7 -7 -6 -5 ------- Run | Scr Mat Mat Min Exi Min Mat Fac Low Low Fac Fac Robot Analysis Total . | . . . . . . . . . . . . Derelict Logs Recovered 3 | . . . 2 . . . . 1 . . . Drone Launches . | . . . . . . . . . . . . Drone Recoveries . | . . . . . . . . . . . . Exploration | -11 -10 -9 -9 -9 -8 -8 -7 -7 -7 -6 -5 ------------- Run | Scr Mat Mat Min Exi Min Mat Fac Low Low Fac Fac Turns Passed 5128 | 38 179 262 327 776 423 967 463 241 365 552 535 Spaces Moved 5150 | 31 155 257 386 696 374 710 659 342 399 580 561 Core 1 | 1 . . . . . . . . . . . Treads . | . . . . . . . . . . . . Legs . | . . . . . . . . . . . . Wheels 2041 | 30 155 257 386 696 374 143 . . . . . Hover 3108 | . . . . . . 567 659 342 399 580 561 Flight . | . . . . . . . . . . . . Fastest Speed 48 | 50 80 80 80 80 80 52 52 52 48 48 48 Average Speed 71 | 79 80 80 80 80 80 102 52 52 49 77 48 Slowest Speed 185 | 80 80 80 80 80 80 185 52 52 52 108 112 Overloaded Moves . | . . . . . . . . . . . . Propulsion Burnouts . | . . . . . . . . . . . . Robots Hopped . | . . . . . . . . . . . . Cave-ins Triggered 1 | . . . . . . . . . . . 1 Exploration Rate (%) 39 | 4 46 20 81 92 58 56 15 54 23 14 14 Regions Visited 11 Branch Regions 5 Pre-discovered Areas 2 | . . . 1 1 . . . . . . . Known Exits Taken 4 | . . . . . . . 1 1 1 1 . Unknown Exits Taken 7 | 1 1 1 1 1 1 1 . . . . . Scrap Searched 3 | . . . 1 . 1 . . 1 . . . Spaces Dug 23 | . . . . 22 . . . . 1 . . Terrain Destroyed 383 | . 92 88 9 26 52 64 1 . 2 . 49 Melee 1 | . . . . . . . . . 1 . . Projectile 26 | . . . . . . 2 1 . 1 . 22 AOE 356 | . 92 88 9 26 52 62 . . . . 27 Actions | -11 -10 -9 -9 -9 -8 -8 -7 -7 -7 -6 -5 --------- Run | Scr Mat Mat Min Exi Min Mat Fac Low Low Fac Fac Total 6189 | 38 182 291 401 903 481 866 761 392 493 668 713 Wait 571 | . 7 3 10 180 87 64 69 33 18 31 69 Move 5139 | 30 154 256 385 695 373 709 658 341 398 579 561 Hop . | . . . . . . . . . . . . Pick Up 31 | 1 . 5 . 2 1 5 5 1 6 3 2 Fast Attach 26 | 5 2 3 3 . . 4 1 . 1 7 . Attach 10 | . . . . . 1 1 1 . 5 . 2 Detach 2 | . . . . . . 2 . . . . . Swap 28 | . . 1 . . 1 7 6 1 6 6 . Drop 48 | . 1 5 2 2 1 11 8 2 3 13 . Fire 196 | 2 17 14 1 6 11 45 9 6 29 6 50 Melee 1 | . . . . . . . . . 1 . . Ram 1 | . . . . . . . . . . . 1 Kick . | . . . . . . . . . . . . Crush . | . . . . . . . . . . . . Escape Stasis 13 | . . . . . . . . . . 13 . Rewire 27 | . . . . 12 . . . . 15 . . Trap . | . . . . . . . . . . . . Miscellaneous 96 | . 1 4 . 6 6 18 4 8 11 10 28 Route ------- -11/Scrapyard -10/Materials (discovered 2 exits: *Mat / [*Min]) -9/Materials (discovered 2 exits: [*Min x2]) -9/Mines -9/Exiles (discovered 2 exits: [*Min x2]) -8/Mines -8/Materials -7/Factory -7/Lower Caves -7/Lower Caves -6/Factory -5/Factory History --------- Turn | Location | Event 1 | -11/Scrapyard | Upgraded with Propulsion slot (x1) 1 | -11/Scrapyard | Upgraded with Utility slot (x1) 1 | -11/Scrapyard | Upgraded with Weapon slot (x1) 10 | -11/Scrapyard | Discovered new exit (range 15) 39 | -11/Scrapyard | Entered Materials 119 | -10/Materials | Discovered new exit (range 15) 209 | -10/Materials | Discovered new exit (range 10) 218 | -10/Materials | Entered another Materials area 220 | -9/Materials | Reached level 2 314 | -9/Materials | Build established: Mutant 348 | -9/Materials | Discovered new exit (range 10) 411 | -9/Materials | Core integrity fell below 50% 442 | -9/Materials | Discovered new exit (range 9) 480 | -9/Materials | Entered Mines 482 | -9/Mines | Reached level 3 492 | -9/Mines | Found a damaged Exp. Sensor Array with a note attached 497 | -9/Mines | Found Prototype Device 497 | -9/Mines | Identified Exp. Sensor Array 501 | -9/Mines | Upgraded with Utility slot (x1) 646 | -9/Mines | Learned Materials stockpile data 796 | -9/Mines | Deemed a non-threat by the Exiles lab entrance 796 | -9/Mines | Discovered new exit (range 5) 807 | -9/Mines | Entered Exiles 807 | -9/Exiles | Found Exiles lab destroyed 807 | -9/Exiles | Accompanied by 2 allies 837 | -9/Exiles | Led the pair of lost Derelicts to a safe place 849 | -9/Exiles | Discovered new exit (range 16) 937 | -9/Exiles | Learned location of Zion (-7) 967 | -9/Exiles | Discovered new exit (range 11) 1583 | -9/Exiles | Entered Mines 1583 | -8/Mines | Accompanied by 2 allies 1585 | -8/Mines | Reached level 4 1590 | -8/Mines | Upgraded with Utility slot (x1) 1862 | -8/Mines | Destroyed 7 combat bots 1998 | -8/Mines | Discovered new exit (range 11) 2006 | -8/Mines | Entered Materials 2008 | -8/Materials | Reached level 5 2151 | -8/Materials | Reached level 6 2209 | -8/Materials | Upgraded with Power slot (x1) 2209 | -8/Materials | Upgraded with Propulsion slot (x1) 2749 | -8/Materials | Build established: Scavenger-Mutant 2970 | -8/Materials | Discovered new exit (range 5) 2973 | -8/Materials | Entered Factory 2975 | -7/Factory | Reached level 7 3281 | -7/Factory | Reached level 8 3399 | -7/Factory | Discovered new exit (range 4) 3429 | -7/Factory | Identified exit to Lower Caves 3436 | -7/Factory | Entered Lower Caves 3436 | -7/Lower Caves | Accompanied by 2 allies 3469 | -7/Lower Caves | Attracted the attention of an 0b10 checkpoint 3646 | -7/Lower Caves | Learned Factory terminal intel 3672 | -7/Lower Caves | Discovered new exit (range 5) 3674 | -7/Lower Caves | Identified exit to Lower Caves 3677 | -7/Lower Caves | Entered another Lower Caves area 3677 | -7/Lower Caves | Accompanied by 2 allies 3679 | -7/Lower Caves | Reached level 9 3680 | -7/Lower Caves | Attacked by a faux Warlord 3681 | -7/Lower Caves | Upgraded with Weapon slot (x1) 3855 | -7/Lower Caves | Found Alien Artifact 3856 | -7/Lower Caves | Identified Core Expander 3856 | -7/Lower Caves | Installed Core Expander, added new Propulsion slot 3979 | -7/Lower Caves | Discovered new exit (range 13) 3997 | -7/Lower Caves | Identified exit to Factory 4042 | -7/Lower Caves | Entered Factory 4042 | -6/Factory | Accompanied by 3 allies 4043 | -6/Factory | Loaded intel: 20 terminal locations 4044 | -6/Factory | Reached level 10 4129 | -6/Factory | Build established: Scavenger-Tank 4222 | -6/Factory | Fabricated Imp. Target Analyzer (x1) 4231 | -6/Factory | Fabricated G-50 Soldier? 4411 | -6/Factory | P-60 Hacker assimilated allied Administrator 4b 4554 | -6/Factory | Discovered new exit (range 7) 4564 | -6/Factory | Identified exit to Factory 4594 | -6/Factory | Entered another Factory area 4594 | -5/Factory | Accompanied by 3 allies 4596 | -5/Factory | Reached level 11 4598 | -5/Factory | Upgraded with Utility slot (x1) 4802 | -5/Factory | Reached level 12 4830 | -5/Factory | Garrison activated, responded to threat 5052 | -5/Factory | Spotted B-75 Beast 5113 | -5/Factory | Core integrity fell below 50% 5130 | -5/Factory | Crushed by falling debris 5130 | -5/Factory | Smashed by cave-in Last Messages --------------- 05114_ U-05 Engineer builds a Wall. 05115_ Slug penetrates U-05 Engineer. 05115_ U-05 Engineer destroyed. 05120_ Slug penetrates S-27 Virus. 05123_ Slug penetrates R-10 Processor. 05125_ R-10 Processor distress signal jammed. 05126_ U-05 Engineer builds a Wall. 05127_ Destroyed Wheel. 05127_ Lgt. Ion Engine melted. 05127_ U-05 Engineer destroyed. 05127_ Slug penetrates H-66 Slayer. 05128_ Slug penetrates G-50 Soldier. 05129_ K-01 Serf collects debris. 05129_ Penetrated by Slug. 05130_ The unstable cave ceiling collapses. 05130_ Crushed by falling debris. 05130_ Gravmag System destroyed. 05130_ System corrupted by crushing effect (+2). 05130_ Lgt. Deuterium Engine destroyed. 05130_ System corrupted by crushing effect (+1). Map ----- +----------------------------------------------------+ | ?????????????????????????????????????????????????? | | ?????????????????????????????????????????????????? | | ?????????????????????????????????????????????????? | | ?????????????????????????????????????????????????? | | ?????????????????????????????????????????????????? | | ???????????????????????????????????????? ????? | | ???????????????????????????????????????# +???? | | ???????????????????????????????????????# #???? | | ???????????????????????????????????????# #???? | | ???????????????????????????????????????# ##+#+ | | ???????????????????????????????????????# | | ???????????????????????????????????????# | | ???????????????????????????????????????# | | ???????????????????????????????????????# | | ???????????????????????????????????????# | | ???????????????????????????????????????# | | ????????????????????????????????######## | | ?????????????????????????###????# | | ????????????????????????? #????# | | ????????????A???????????? #????# | | ????????????############## #????# g | | ????????????# # #???## R | | ??????o?????# #R#?? ## #####/###### | | ????????????# #k##;### Rb ## #? | | ????????????# #s h ## ## | | ????????????# @gu R ## + | | ????????????# ss* h ## ! ## | | ????????????# s#u ## #? | | ????????????# " ## #? | | ????????????# ## ######### #? | | ????????????# #" #???????# #? | | ????????????# ## #???????# #? | | ????????????# ## #???????##########? | | ????????????############### #?????????????????? | | ?????????????????????????? +?????????????????? | | ????????????????????????? #### #?????????????????? | | ????????????????????????? ???# #?????????????????? | | ???????????????????????? ????# +?????????????????? | | ??????????????????????????????##?????????????????? | | ?????????????????????????????????????????????????? | | ?????????????????????????????????????????????????? | | ?????????????????????????????????????????????????? | | ?????????????????????????????????????????????????? | | ?????????????????????????????????????????????????? | | ?????????????????????????????????????????????????? | | ?????????????????????????????????????????????????? | | ?????????????????????????????????????????????????? | | ?????????????????????????????????????????????????? | | | | | +----------------------------------------------------+ Best States ------------- Heat Dissipation 73 Energy Generation 29 Energy Capacity 640 Matter Stores 550 Matter Capacity 550 Sight Range 19 Robot Scan Range 32 Terrain Scan Density 10 Jamming Range 14 Armor Coverage 150 Resistance: KI 20 Resistance: TH 20 Resistance: EX 20 Evasion (%) 55 Offensive Hacking 25 Item Schematics ----------------- Imp. Hover Unit | -8/Materials | Hacked Imp. Gravmag System | -7/Factory | Hacked Imp. Maneuvering Thrusters | -6/Factory | Hacked Hacking Suite | -6/Factory | Scanalyzed Robot Schematics ------------------ G-50 Soldier | -6/Factory | Hacked Fabricated ------------ Imp. Target Analyzer | x1 | -6/Factory | Preloaded G-50 Soldier | x3 | -6/Factory Alien Tech Used ----------------- Core Expander Achievements -------------- No Signal Total Silence Challenges ------------ None RPGLIKE | -11 -10 -9 -9 -9 -8 -8 -7 -7 -7 -6 -5 --------- Run | Scr Mat Mat Min Exi Min Mat Fac Low Low Fac Fac Levels Raised 11 | . . 1 1 . 1 2 2 . 1 1 2 XP Earned 20894 | 3000 1010 1945 850 305 1650 2895 2170 750 675 2393 3251 XP Spent 19390 | 2900 . 1550 1200 . 1100 3160 3475 . 1055 2050 2900 Upgrades 55 | 10 . 4 4 . 1 9 15 . 4 4 4 Power Slot 1 | . . . . . . 1 . . . . . Propulsion Slot 2 | 1 . . . . . 1 . . . . . Utility Slot 4 | 1 . . 1 . 1 . . . . . 1 Weapon Slot 2 | 1 . . . . . . . . 1 . . Core Integrity 8 | . . . . . . 4 1 . 3 . . Heat Dissipation 8 | . . . . . . . 8 . . . . Energy Storage 3 | 2 . . . . . . . . . 1 . Matter Storage 2 | 2 . . . . . . . . . . . Mass Support 1 | . . . . . . . 1 . . . . Inventory Capacity 4 | 1 . 2 . . . 1 . . . . . Sight Range 1 | . . 1 . . . . . . . . . Sensor Range 1 | . . . 1 . . . . . . . . Hack Attack % 3 | . . 1 . . . . 2 . . . . KI Resistance % 4 | 1 . . . . . 1 1 . . 1 . TH Resistance % 4 | 1 . . . . . 1 1 . . 1 . EX Resistance % 4 | . . . 2 . . . 1 . . 1 . TH Damage % 3 | . . . . . . . . . . . 3 Protomatter Created 681 | . 8 29 . 47 20 134 31 57 77 37 241 Integrity Restored 2058 | . 3 87 . 141 105 399 93 169 231 212 618 Core 2026 | . 3 87 . 141 105 399 93 161 231 212 594 Parts 32 | . . . . . . . . 8 . . 24 Protomatter Decayed 58 | . . . . . . 1 . . . 57 . Game ------ Seed ResetLinkedExpander Manual? 0 Play Time 01:28:34 Cumulative 58.7 hours Start 2020.06.05 @ 00:56:00 End 2020.07.23 @ 03:06:25 Sessions 5 Manual Loads 0 Difficulty Rogue Special Mode Winter2019/RPGLIKE Game No. 82 Rogue 82 Adventurer 0 Explorer 0 Win Type - Total 0 Types 0/0/0/0/0/0/0 Lore% 33 Gallery% 43 Achievement% 35 Wizard Run 0 Options --------- ASCII 0 Keyboard 0 Movement Mouse Keybinds 0 Fullscreen 2 Font 18/X11 Map View 76x50 Tactical HUD 1 Map Filters NONE Filters NONE Steam 1 RUN: a75d00e8-8522-48bb-a118-e0934a37fa95